bitfinex/quotes_SOLUSD_20251216
["timestamp","ask_amount","ask_price","bid_price","bid_amount"]
[1765896606439,0.67,128.67,128.6,9.46994492]
[1765896606612,22.33070773,128.68,128.63,9.46994492]
[1765896607129,20.9315209,128.69,128.65,8.80994492]
[1765896607430,19.52200124,128.72,128.69,8.80994492]
[1765896607431,0.1,128.72,128.69,8.80994492]
[1765896607730,0.1,128.72,128.71,8.80994492]
[1765896608051,13.26070773,128.75,128.73,9.46994492]
[1765896608052,0.1,128.75,128.73,9.46994492]
[1765896608324,0.1,128.75,128.73,8.80994492]
[1765896608713,0.1,128.75,128.73,22.63065265]
[1765896608908,0.1,128.75,128.66,0.66]
[1765896609227,0.1,128.75,128.65,0.77730275]
[1765896609228,0.1,128.75,128.73,8.80994492]
[1765896609414,0.1,128.75,128.72,8.80994492]
[1765896609727,0.1,128.75,128.71,21.47630671]
[1765896609728,13.26070773,128.75,128.71,17.23928238]
[1765896609936,13.93070773,128.75,128.71,8.80994492]
[1765896610225,0.67,128.74,128.66,20.09057829]
[1765896610420,0.67,128.74,128.69,8.80994492]
[1765896610596,13.83070773,128.72,128.67,9.16]
[1765896610798,8.5,128.74,128.68,16.58098631]
[1765896611025,0.1,128.75,128.72,8.80994492]
[1765896611215,0.1,128.75,128.74,30.39824624]
[1765896611417,0.1,128.77,128.76,22.51703612]
[1765896611649,1e-08,128.82,128.76,43.51774385]
[1765896611942,0.67,128.81,128.77,8.80994492]
[1765896612251,1e-08,128.82,128.8,8.80994492]
[1765896612554,1e-08,128.82,128.8,22.63065265]
[1765896613137,1e-08,128.82,128.81,16.57331732]
[1765896613553,1e-08,128.82,128.81,8.80994492]
[1765896613756,1e-08,128.82,128.81,21.97065265]
[1765896614041,1e-08,128.82,128.81,8.80994492]
[1765896614247,1e-08,128.82,128.8,20.81088696]
[1765896614416,1e-08,128.82,128.81,22.63065265]
[1765896614620,1e-08,128.82,128.81,9.46994492]
[1765896614823,1e-08,128.82,128.78,8.5]
[1765896615120,1e-08,128.82,128.77,20.07412178]
[1765896615121,1e-08,128.82,128.79,22.63065265]
[1765896615324,1e-08,128.82,128.81,8.80994492]
[1765896615526,1e-08,128.82,128.81,9.46994492]
[1765896615723,1e-08,128.82,128.81,35.01774385]
[1765896616031,0.1,128.89,128.81,35.79408109]
[1765896616221,0.1,128.92,128.89,0.66]
[1765896616551,0.1,128.97,128.91,35.67774385]
[1765896616725,0.1,128.97,128.94,0.66]
[1765896617052,0.1,128.97,128.95,8.80994492]
[1765896617251,21.01461626,128.97,128.92,17.22650375]
[1765896617432,0.1,128.97,128.94,8.80994492]
[1765896617634,0.1,128.95,128.94,8.80994492]
[1765896618647,0.1,128.95,128.93,21.97065265]
[1765896619154,0.1,128.95,128.94,8.80994492]
[1765896619357,0.1,128.95,128.94,16.56549013]
[1765896619560,0.1,128.97,128.94,38.88619786]
[1765896619867,7.7471577,129.08,129.02,13.16070773]
[1765896620155,0.67,129.08,129.04,8.80994492]
[1765896620325,0.67,129.08,129.02,8.5]
[1765896620533,0.67,129.12,129.03,9.36994492]
[1765896620747,0.67,129.12,129.04,21.97065265]
[1765896620947,0.67,129.12,129.04,8.80994492]
[1765896621151,8.5,129.17,129.08,8.80994492]
[1765896621345,27.19330249,129.19,129.11,29.71596285]
[1765896621528,0.67,129.15,129.06,0.56]
[1765896621728,0.67,129.12,129.08,8.80994492]
[1765896621933,0.67,129.12,129.06,0.56]
[1765896622152,13.05474436,129.11,129.07,8.80994492]
[1765896622532,0.67,129.12,129.06,8.80994492]
[1765896622728,13.72474436,129.09,129.06,8.80994492]
[1765896622964,0.67,129.09,129.03,0.56]
[1765896623184,0.67,129.09,129.02,29.27730498]
[1765896623185,13.72474436,129.07,129.02,21.5270912]
[1765896623342,20.80427938,129.04,128.98,8.48]
[1765896623535,0.67,129.05,129.0,13.05474436]
[1765896623757,13.7170912,129.08,129.01,13.05474436]
[1765896624058,0.67,129.04,128.97,13.05474436]
[1765896624265,13.72474436,128.99,128.93,13.05474436]
[1765896624467,13.0470912,129.03,128.94,13.05474436]
[1765896624468,0.67,129.02,128.94,13.05474436]
[1765896624637,0.67,129.02,128.96,13.0470912]
[1765896624839,0.67,129.02,128.92,8.48]
[1765896624840,13.05474436,128.98,128.92,0.56]
[1765896625051,13.05474436,128.96,128.9,7.75784077]
[1765896625262,0.67,128.99,128.88,0.56]
[1765896625463,0.67,128.99,128.92,13.05474436]
[1765896625464,0.67,128.97,128.92,13.05474436]
[1765896625666,20.80788438,128.98,128.92,13.0470912]
[1765896625838,0.67,128.98,128.92,13.05474436]
[1765896626040,13.05474436,128.99,128.92,0.56]
[1765896626340,13.05474436,128.95,128.9,13.05474436]
[1765896626542,13.72474436,128.94,128.88,20.8138565]
[1765896626761,0.67,128.93,128.88,33.8609477]
[1765896626937,13.72474436,128.93,128.87,13.05474436]
[1765896627137,13.72474436,128.93,128.86,16.7999061]
[1765896627138,13.72474436,128.93,128.88,20.81383765]
[1765896627551,13.05474436,128.92,128.88,8.80994492]
[1765896627874,13.05474436,128.89,128.83,9.04]
[1765896628078,13.72474436,128.89,128.84,26.10183556]
[1765896628247,13.72474436,128.89,128.84,13.05474436]
[1765896628568,13.72474436,128.92,128.88,8.80994492]
[1765896628879,13.72474436,128.91,128.88,8.80994492]
[1765896629167,0.67,128.89,128.86,8.80994492]
[1765896629348,0.67,128.89,128.83,8.48]
[1765896629547,13.0470912,128.9,128.83,21.53474436]
[1765896629548,13.72474436,128.88,128.83,21.53474436]
[1765896630165,0.67,128.87,128.84,8.80994492]
[1765896630385,13.72474436,128.87,128.84,8.80994492]
[1765896630586,13.05474436,128.87,128.84,8.80994492]
[1765896630763,13.72474436,128.86,128.82,8.80994492]
[1765896630943,0.67,128.86,128.83,8.80994492]
[1765896631144,0.67,128.88,128.83,21.86468928]
[1765896631382,13.05474436,128.86,128.81,20.81768615]
[1765896631586,13.72474436,128.85,128.8,8.48]
[1765896631792,13.72474436,128.82,128.77,7.76561705]
[1765896632089,13.72474436,128.82,128.77,20.82036141]
[1765896632281,0.67,128.82,128.78,29.62970033]
[1765896632447,0.67,128.79,128.75,7.76691906]
[1765896632652,8.48,128.86,128.73,20.82278219]
[1765896632653,0.67,128.77,128.73,20.82278219]
[1765896632964,0.67,128.77,128.71,16.2488254]
[1765896633139,13.05474436,128.75,128.71,8.48]
[1765896633340,13.05474436,128.73,128.68,7.77106532]
[1765896633567,0.67,128.71,128.68,7.77106532]
[1765896633875,0.67,128.71,128.67,13.05474436]
[1765896634180,0.69,128.68,128.65,7.77283417]
[1765896634386,36.35690499,128.74,128.67,13.05474436]
[1765896634581,34.55975656,128.74,128.68,13.05474436]
[1765896634886,13.74474436,128.76,128.72,8.80994492]
[1765896635072,13.05474436,128.74,128.7,8.80994492]
[1765896635273,0.69,128.73,128.7,8.80994492]
[1765896635474,13.74474436,128.72,128.66,40.95780613]
[1765896635776,13.74474436,128.7,128.66,7.77191738]
[1765896635969,0.69,128.69,128.65,20.82767543]
[1765896636169,0.69,128.69,128.66,8.80994492]
[1765896636566,13.0470912,128.74,128.66,8.80994492]
[1765896636756,0.69,128.73,128.69,8.80994492]
[1765896636955,0.69,128.73,128.69,21.86468928]
[1765896637252,9.17,128.75,128.7,21.86468928]
[1765896637453,8.08160391,128.74,128.7,8.80994492]
[1765896637653,8.08160391,128.74,128.7,7.76991115]
[1765896637654,0.69,128.74,128.7,7.76991115]
[1765896637899,8.77160391,128.74,128.7,7.76991115]
[1765896638068,8.77160391,128.73,128.69,7.77059503]
[1765896638270,0.69,128.73,128.7,7.76965608]
[1765896638454,16.56160391,128.75,128.7,15.85125999]
[1765896638652,16.56160391,128.75,128.71,8.80994492]
[1765896639086,9.17,128.75,128.71,8.08160391]
[1765896639281,0.99999999,128.84,128.7,27.1946755]
[1765896639282,8.77160391,128.78,128.73,16.89154883]
[1765896639481,9.17,128.81,128.75,8.80994492]
[1765896639785,0.69,128.8,128.75,16.89154883]
[1765896639985,17.25160391,128.81,128.77,8.80994492]
[1765896640157,8.08160391,128.82,128.77,16.89154883]
[1765896640359,0.69,128.83,128.79,8.08160391]
[1765896640656,13.0470912,128.85,128.79,8.08160391]
[1765896640894,8.77160391,128.85,128.81,8.80994492]
[1765896641185,8.77160391,128.85,128.79,8.48]
[1765896641385,16.26038974,128.86,128.78,8.80994492]
[1765896641386,16.53362949,128.84,128.78,8.80994492]
[1765896641567,0.69,128.82,128.78,16.89154883]
[1765896641766,0.69,128.8,128.71,0.56]
[1765896641968,40.2130286,128.84,128.66,38.8619436]
[1765896641969,8.08160391,128.83,128.77,8.08160391]
[1765896642183,0.69,128.84,128.8,8.08160391]
[1765896642491,0.69,128.87,128.83,8.80994492]
[1765896642673,8.77160391,128.86,128.8,8.48]
[1765896642871,0.69,128.87,128.82,16.89154883]
[1765896643197,8.08160391,128.87,128.81,8.80994492]
[1765896643367,0.69,128.84,128.81,8.80994492]
[1765896643573,0.69,128.84,128.8,19.37929034]
[1765896643775,0.69,128.84,128.81,7.76330742]
[1765896644078,24.6627727,128.87,128.82,20.42562642]
[1765896644288,0.69,128.86,128.82,20.42562642]
[1765896644478,0.69,128.87,128.83,11.6156815]
[1765896644676,0.69,128.87,128.82,8.80994492]
[1765896644874,19.37375734,128.9,128.85,11.6156815]
[1765896645074,12.3056815,128.9,128.86,8.80994492]
[1765896645287,0.69,128.9,128.86,20.42562642]
[1765896645468,0.69,128.9,128.86,28.18578926]
[1765896645670,0.69,128.89,128.86,8.80994492]
[1765896645976,11.6156815,128.92,128.87,11.6156815]
[1765896646186,0.69,128.91,128.88,8.80994492]
[1765896646379,0.69,128.9,128.86,11.6156815]
[1765896646583,0.69,128.92,128.88,8.80994492]
[1765896646799,0.69,128.92,128.88,20.42562642]
[1765896647001,8.5,128.93,128.9,8.80994492]
[1765896647302,12.3056815,128.98,128.92,20.42562642]
[1765896647502,11.6156815,129.01,128.93,40.1936048]
[1765896647669,0.69,129.01,128.97,20.42562642]
[1765896647868,11.6156815,129.01,128.97,8.80994492]
[1765896648102,0.69,129.0,128.97,8.80994492]
[1765896648899,0.69,129.01,128.97,11.6156815]
[1765896649098,0.69,129.0,128.97,8.80994492]
[1765896649479,0.69,129.02,128.98,19.36882152]
[1765896649870,0.69,129.01,128.97,28.17917246]
[1765896650101,0.69,129.18,129.0,36.2784542]
[1765896650304,7.74173569,129.17,129.05,8.80994492]
[1765896650599,0.69,129.16,129.1,8.80994492]
[1765896650781,11.6156815,129.17,129.12,8.80994492]
[1765896650983,11.6156815,129.18,129.12,20.42562642]
[1765896651170,0.69,129.16,129.09,8.48]
[1765896651373,12.3056815,129.16,129.09,27.11286698]
[1765896651569,0.69,129.16,129.11,11.6156815]
[1765896651876,0.79,129.19,129.13,8.80994492]
[1765896652198,0.69,129.17,129.14,11.6156815]
[1765896652503,0.69,129.18,129.14,11.6156815]
[1765896652681,0.69,129.18,129.12,8.80994492]
[1765896652877,0.69,129.18,129.16,8.80994492]
[1765896653079,0.1,129.19,129.16,8.80994492]
[1765896653382,0.1,129.19,129.18,16.55108131]
[1765896653582,0.1,129.19,129.18,28.16676281]
[1765896653796,0.1,129.19,129.16,19.35464979]
[1765896653797,0.1,129.19,129.17,11.6156815]
[1765896654086,0.1,129.23,129.18,36.64676281]
[1765896654288,0.99999999,129.36,129.18,36.64676281]
[1765896654289,11.7156815,129.36,129.35,8.80994492]
[1765896654488,0.69,129.48,129.37,21.85703612]
[1765896654693,0.69,129.51,129.38,13.82000818]
[1765896655010,11.6156815,129.51,129.46,11.6156815]
[1765896655305,8.40726207,129.58,129.46,0.77243936]
[1765896655512,0.69,129.51,129.4,19.5870912]
[1765896655804,0.69,129.58,129.51,8.80994492]
[1765896656008,0.05997067,129.54,129.47,0.5]
[1765896656207,0.05997067,129.54,129.5,8.80994492]
[1765896656705,13.10706187,129.54,129.42,1.2726781]
[1765896656897,13.10706187,129.54,129.4,13.0470912]
[1765896656898,11.6156815,129.49,129.4,13.0470912]
[1765896657209,0.05997067,129.54,129.44,8.80994492]
[1765896657408,0.05997067,129.54,129.53,20.42562642]
[1765896657614,0.05997067,129.54,129.53,8.80994492]
[1765896657986,0.05997067,129.54,129.45,19.31183069]
[1765896658306,0.05997067,129.54,129.53,8.80994492]
[1765896658804,0.69,129.63,129.55,8.80994492]
[1765896659005,11.6156815,129.61,129.55,8.46]
[1765896659191,0.69,129.59,129.55,8.80994492]
[1765896659389,0.69,129.58,129.52,7.72051182]
[1765896659698,0.69,129.55,129.46,8.80994492]
[1765896659879,11.6156815,129.54,129.51,8.80994492]
[1765896660073,11.6156815,129.53,129.48,13.0470912]
[1765896660298,11.6156815,129.53,129.47,7.72366761]
[1765896660299,0.69,129.51,129.42,7.72628459]
[1765896660507,0.69,129.51,129.42,11.6156815]
[1765896660701,13.0470912,129.5,129.43,19.3416713]
[1765896660907,27.01036944,129.58,129.45,11.6156815]
[1765896661102,13.0470912,129.55,129.46,21.5070912]
[1765896661299,0.69,129.54,129.47,8.80994492]
[1765896661504,7.71843161,129.56,129.49,8.80994492]
[1765896661801,12.3056815,129.5,129.47,8.80994492]
[1765896661998,11.6156815,129.48,129.44,20.77253992]
[1765896662202,11.6156815,129.48,129.44,13.0470912]
[1765896662392,11.6156815,129.48,129.42,19.75664117]
[1765896662393,0.69,129.5,129.45,8.80994492]
[1765896662591,13.0470912,129.53,129.47,8.80994492]
[1765896662794,0.69,129.53,129.47,20.42562642]
[1765896663090,0.69,129.55,129.48,8.80994492]
[1765896663287,0.69,129.55,129.54,8.80994492]
[1765896663689,0.1,129.64,129.58,9.24994492]
[1765896663906,0.1,129.64,129.59,8.80994492]
[1765896664081,11.6156815,129.63,129.59,8.80994492]
[1765896664278,0.1,129.64,129.61,20.42562642]
[1765896664483,0.1,129.64,129.62,8.80994492]
[1765896664684,11.7156815,129.64,129.56,0.44]
[1765896664986,11.7156815,129.64,129.61,8.80994492]
[1765896664987,7.81368268,129.64,129.61,8.80994492]
[1765896665187,0.1,129.64,129.63,20.42562642]
[1765896665395,26.96871628,129.78,129.63,33.47271762]
[1765896665708,26.96871628,129.78,129.61,8.46]
[1765896665709,4.03032116,129.78,129.73,8.80994492]
[1765896665915,7.70357789,129.81,129.75,8.80994492]
[1765896666096,7.70357789,129.81,129.74,13.0470912]
[1765896666097,0.65,129.86,129.79,8.80994492]
[1765896666412,0.65,129.86,129.78,11.6156815]
[1765896666413,0.65,129.83,129.75,0.7707129]
[1765896666611,0.65,129.83,129.74,8.80994492]
[1765896666783,0.65,129.84,129.72,8.80994492]
[1765896666981,0.65,129.85,129.73,0.44]
[1765896667187,0.65,129.85,129.81,8.80994492]
[1765896667485,7.70238003,129.83,129.77,8.46]
[1765896667708,0.65,129.82,129.74,8.80994492]
[1765896668017,0.65,129.76,129.65,1.21130736]
[1765896668186,0.65,129.75,129.67,11.6156815]
[1765896668390,0.65,129.75,129.42,65.61431474]
[1765896668692,8.80994492,129.81,129.42,65.61431474]
[1765896668693,0.65,129.73,129.66,11.6156815]
[1765896668897,12.2656815,129.73,129.66,11.6156815]
[1765896669197,0.65,129.77,129.7,8.80994492]
[1765896669413,73.91023028,129.83,129.73,8.80994492]
[1765896669599,7.70356675,129.81,129.75,20.42562642]
[1765896669910,0.65,129.84,129.78,20.42562642]
[1765896670082,7.70060064,129.86,129.82,8.80994492]
[1765896670288,7.70060064,129.86,129.73,27.74962834]
[1765896670289,27.60210225,129.86,129.75,13.0470912]
[1765896670485,11.6156815,129.82,129.76,8.80994492]
[1765896670786,13.0470912,129.83,129.75,8.80994492]
[1765896671005,13.0470912,129.83,129.72,8.44]
[1765896671304,11.6156815,129.74,129.67,11.6156815]
[1765896671496,11.6156815,129.71,129.64,8.44]
[1765896671715,11.6156815,129.67,129.6,11.6156815]
[1765896671921,0.65,129.67,129.59,11.6156815]
[1765896672232,11.6156815,129.69,129.62,11.6156815]
[1765896672431,12.2656815,129.69,129.62,11.6156815]
[1765896672630,12.2656815,129.72,129.63,13.0470912]
[1765896672838,11.6156815,129.71,129.62,8.15429181]
[1765896673003,11.6156815,129.69,129.64,8.80994492]
[1765896673332,7.70717111,129.75,129.68,20.42562642]
[1765896673531,11.6156815,129.81,129.75,8.80994492]
[1765896673739,12.2656815,129.81,129.75,8.80994492]
[1765896674037,65.45006545,129.87,129.76,8.80994492]
[1765896674236,9.09,129.83,129.76,8.80994492]
[1765896674435,12.2656815,129.83,129.76,20.42562642]
[1765896674737,11.6156815,129.78,129.72,8.80994492]
[1765896674905,13.0470912,129.76,129.66,13.0470912]
[1765896675106,0.65,129.77,129.71,8.80994492]
[1765896675323,0.65,129.81,129.74,8.80994492]
[1765896675514,0.65,129.81,129.74,16.51746351]
[1765896675716,0.65,129.86,129.81,8.80994492]
[1765896675929,0.65,129.86,129.8,24.6627727]
[1765896675930,0.65,129.86,129.85,8.80994492]
[1765896676214,11.6156815,129.92,129.86,8.80994492]
[1765896676415,0.65,129.93,129.84,8.80994492]
[1765896676612,11.6156815,129.88,129.84,8.80994492]
[1765896676834,19.24262355,129.92,129.81,8.80994492]
[1765896677027,0.65,129.91,129.81,13.0470912]
[1765896677223,11.6156815,129.88,129.82,8.80994492]
[1765896677424,19.24262355,129.92,129.86,8.80994492]
[1765896677425,19.89262355,129.92,129.86,8.80994492]
[1765896677622,11.6156815,129.87,129.75,0.99999999]
[1765896677822,0.65,129.87,129.77,8.80994492]
[1765896678025,11.6156815,129.79,129.69,0.44]
[1765896678234,12.2656815,129.79,129.72,11.6156815]
[1765896678415,0.65,129.79,129.7,26.9844453]
[1765896678621,11.6156815,129.78,129.71,11.6156815]
[1765896678825,0.65,129.82,129.71,13.0470912]
[1765896679128,18.52,129.94,129.8,8.80994492]
[1765896679351,11.6156815,129.88,129.8,8.80994492]
[1765896679508,7.69882208,129.89,129.82,8.80994492]
[1765896679711,0.65,129.9,129.83,11.6156815]
[1765896679712,19.96398511,129.9,129.83,11.6156815]
[1765896679931,8.34830361,129.9,129.84,20.42562642]
[1765896680141,12.2656815,129.88,129.78,8.44]
[1765896680336,7.69830361,129.9,129.84,20.42562642]
[1765896680540,11.6156815,129.93,129.87,8.80994492]
[1765896680724,27.58550868,129.94,129.87,20.42562642]
[1765896680725,19.96154112,129.94,129.87,20.42562642]
[1765896681040,19.96154112,129.94,129.88,8.80994492]
[1765896681238,7.69530787,129.95,129.86,0.44]
[1765896681447,0.65,129.94,129.87,8.80994492]
[1765896681661,12.2656815,129.91,129.83,7.70232308]
[1765896681940,11.6156815,129.88,129.8,21.4670912]
[1765896682150,8.42,129.93,129.76,19.2662158]
[1765896682151,11.6156815,129.85,129.76,19.2662158]
[1765896682447,13.0470912,129.9,129.8,11.6156815]
[1765896682637,11.6156815,129.92,129.82,8.14283938]
[1765896682961,1.18235051,130.06,129.9,20.42562642]
[1765896683146,0.65,129.98,129.88,11.6156815]
[1765896683329,11.6156815,129.94,129.89,8.80994492]
[1765896683515,26.92514808,129.99,129.91,8.80994492]
[1765896683717,0.65,129.98,129.89,8.80994492]
[1765896683946,0.65,129.97,129.91,8.80994492]
[1765896684117,0.65,129.97,129.86,0.44]
[1765896684118,0.65,129.98,129.86,0.44]
[1765896684317,0.65,129.93,129.88,8.80994492]
[1765896684542,7.69289945,129.99,129.9,7.6982294]
[1765896684844,0.65,129.98,129.9,8.80994492]
[1765896685053,0.65,129.98,129.91,11.6156815]
[1765896685256,12.2656815,129.98,129.92,11.6156815]
[1765896685461,26.92514808,129.99,129.88,13.0470912]
[1765896685746,8.34542217,129.95,129.91,8.80994492]
[1765896685952,26.93359069,129.95,129.86,40.43780456]
[1765896686167,7.69542217,129.95,129.91,8.80994492]
[1765896686448,0.65,129.92,129.85,11.6156815]
[1765896686616,11.6156815,129.89,129.83,11.6156815]
[1765896686813,11.6156815,129.87,129.79,27.68173646]
[1765896687019,0.65,129.84,129.79,11.6156815]
[1765896687336,12.2656815,129.85,129.77,7.70542962]
[1765896687516,7.70178681,129.84,129.76,0.44]
[1765896687717,11.6156815,129.8,129.74,11.6156815]
[1765896687945,7.70178681,129.84,129.79,11.6156815]
[1765896688158,39.47633704,129.95,129.84,8.80994492]
[1765896688159,0.65,129.94,129.84,8.80994492]
[1765896688364,0.02,130.0,129.85,13.0470912]
[1765896688647,0.65,129.96,129.88,11.6156815]
[1765896688827,0.65,129.96,129.9,11.6156815]
[1765896689032,0.65,129.96,129.91,8.80994492]
[1765896689227,0.65,129.96,129.87,1.21000077]
[1765896689435,11.6156815,129.91,129.86,8.80994492]
[1765896689621,13.0470912,129.96,129.85,8.80994492]
[1765896689622,12.19063713,129.89,129.85,8.80994492]
[1765896689946,0.65,129.85,129.74,0.44]
[1765896690117,13.0470912,129.87,129.75,12.19063713]
[1765896690118,0.65,129.82,129.75,12.19063713]
[1765896690317,0.65,129.82,129.75,19.89758993]
[1765896690544,0.65,129.82,129.73,19.26948452]
[1765896690750,12.19063713,129.79,129.71,19.71359815]
[1765896690952,12.19063713,129.76,129.7,16.12996702]
[1765896691260,0.65,129.79,129.7,8.42]
[1765896691261,12.19063713,129.75,129.7,8.42]
[1765896691457,0.65,129.8,129.68,19.71687118]
[1765896691765,12.19063713,129.78,129.7,0.44]
[1765896691956,12.19063713,129.77,129.71,12.19063713]
[1765896692162,12.19063713,129.77,129.71,8.80994492]
[1765896692356,0.65,129.78,129.71,16.51915372]
[1765896692535,0.65,129.75,129.62,0.44]
[1765896692733,40.01372961,129.79,129.69,12.19063713]
[1765896692734,26.96663841,129.79,129.69,12.19063713]
[1765896692938,12.19063713,129.77,129.71,19.89997728]
[1765896693152,12.19063713,129.81,129.76,8.80994492]
[1765896693342,0.99999999,129.96,129.81,8.80994492]
[1765896693534,7.69882208,129.89,129.82,7.70297334]
[1765896693734,12.19063713,129.83,129.72,0.44]
[1765896693934,12.19063713,129.82,129.77,28.70636371]
[1765896694134,0.69,129.85,129.77,12.19063713]
[1765896694335,65.43998768,129.89,129.78,8.80994492]
[1765896694569,12.19063713,129.87,129.82,8.80994492]
[1765896694746,12.19063713,129.86,129.81,7.70354081]
[1765896695060,12.19063713,129.84,129.78,28.70551299]
[1765896695232,0.69,129.83,129.78,8.80994492]
[1765896695435,12.19063713,129.8,129.7,0.77101002]
[1765896695660,19.89717227,129.76,129.71,12.19063713]
[1765896695844,19.89717227,129.76,129.69,12.19063713]
[1765896695845,12.19063713,129.75,129.69,12.19063713]
[1765896696050,12.88063713,129.73,129.68,7.71078721]
[1765896696248,12.19063713,129.75,129.69,7.71038623]
[1765896696552,0.69,129.75,129.67,12.19063713]
[1765896696753,12.19063713,129.73,129.67,7.71147271]
[1765896697063,0.69,129.75,129.66,7.71193182]
[1765896697248,12.19063713,129.74,129.69,8.80994492]
[1765896697448,12.88063713,129.75,129.69,16.52056759]
[1765896697646,20.58881944,129.74,129.69,16.52056759]
[1765896697962,12.19063713,129.74,129.69,16.52054912]
[1765896698143,12.19063713,129.73,129.65,19.28126591]
[1765896698342,12.19063713,129.72,129.66,28.71290704]
[1765896698534,12.19063713,129.7,129.66,8.80994492]
[1765896698739,12.19063713,129.69,129.64,20.61063713]
[1765896698932,12.88063713,129.68,129.63,19.90432109]
[1765896699135,12.19063713,129.68,129.64,8.80994492]
[1765896699350,14.67099012,129.68,129.64,8.80994492]
[1765896699553,0.69,129.68,129.62,7.71485881]
[1765896699876,13.98099012,129.67,129.61,7.71533814]
[1765896700038,13.98099012,129.65,129.55,0.44]
[1765896700244,0.69,129.66,129.59,7.71645766]
[1765896700452,13.98099012,129.68,129.59,0.77166448]
[1765896700768,35.40788649,129.69,129.63,8.80994492]
[1765896700769,0.69,129.67,129.63,8.80994492]
[1765896700970,14.67099012,129.67,129.63,8.80994492]
[1765896701274,14.67099012,129.68,129.61,27.00400161]
[1765896701447,14.67099012,129.68,129.62,8.80994492]
[1765896701649,22.38253174,129.68,129.62,8.80994492]
[1765896701947,0.69,129.65,129.61,8.80994492]
[1765896702257,26.98976493,129.68,129.61,8.80994492]
[1765896702463,0.69,129.7,129.65,8.80994492]
[1765896702652,0.69,129.7,129.62,7.7147353]
[1765896703144,0.69,129.7,129.62,7.71465066]
[1765896703477,0.69,129.7,129.61,8.80994492]
[1765896703478,0.69,129.69,129.61,8.80994492]
[1765896703766,0.69,129.67,129.59,21.69743319]
[1765896703977,0.69,129.66,129.6,16.52550571]
[1765896704277,13.98099012,129.63,129.57,35.44808132]
[1765896704476,0.69,129.65,129.61,16.52532522]
[1765896704666,13.98099012,129.66,129.61,30.50631534]
[1765896704845,13.98099012,129.67,129.61,30.50631534]
[1765896705041,0.69,129.66,129.61,21.69637042]
[1765896705237,7.71128932,129.68,129.63,13.98099012]
[1765896705440,21.69227944,129.68,129.62,8.80994492]
[1765896705641,13.98099012,129.68,129.62,8.80994492]
[1765896705870,0.69,129.68,129.61,7.7153803]
[1765896706191,0.69,129.68,129.62,8.80994492]
[1765896706683,14.67099012,129.63,129.59,16.52637299]
[1765896707049,13.0470912,129.68,129.6,7.71599776]
[1765896707370,0.69,129.66,129.62,8.80994492]
[1765896707542,0.69,129.67,129.61,8.80994492]
[1765896707745,14.67099012,129.65,129.61,16.52505299]
[1765896707979,14.67099012,129.65,129.61,7.71536889]
[1765896708274,0.69,129.64,129.61,8.80994492]
[1765896708483,0.69,129.7,129.61,30.50622206]
[1765896708651,13.98099012,129.67,129.61,7.71528702]
[1765896708998,13.98099012,129.67,129.52,38.60247264]
[1765896708999,13.98099012,129.63,129.57,27.02808132]
[1765896709172,8.42,129.67,129.59,7.71626115]
[1765896709173,14.67099012,129.62,129.59,7.71626115]
[1765896709479,13.98099012,129.6,129.54,13.98099012]
[1765896709789,14.67099012,129.6,129.55,7.7190274]
[1765896710269,14.67099012,129.6,129.55,27.0165959]
[1765896710270,13.98099012,129.6,129.55,27.0165959]
[1765896710471,0.69,129.55,129.51,0.2]
[1765896711088,0.69,129.54,129.51,0.2]
[1765896711253,13.98099012,129.54,129.51,0.2]
[1765896711450,13.98099012,129.52,129.51,0.2]
[1765896711766,0.69,129.53,129.51,0.2]
[1765896711945,0.69,129.53,129.49,0.2]
[1765896712671,0.69,129.54,129.49,0.2]
[1765896712872,13.98099012,129.53,129.49,7.92242907]
[1765896713179,14.67099012,129.53,129.49,7.92242907]
[1765896713376,14.67099012,129.52,129.49,0.2]
[1765896713558,27.01681296,129.55,129.49,0.2]
[1765896713880,0.69,129.49,129.43,7.7259945]
[1765896714080,14.67099012,129.47,129.43,7.7259945]
[1765896714282,13.98099012,129.44,129.38,8.44]
[1765896714490,0.69,129.44,129.39,19.32071436]
[1765896714652,14.67099012,129.44,129.39,19.32071436]
[1765896714983,14.67099012,129.44,129.38,13.98099012]
[1765896715189,13.98099012,129.43,129.37,19.32415177]